[Event "*** Titled Tuesday Blitz"]
[Site "Chess.com"]
[Date "2020.05.26"]
[Round "8"]
[White "Keks2017"]
[Black "OK97"]
[Result "1/2-1/2"]
[WhiteElo "2555"]
[BlackElo "2768"]
[TimeControl "180+1"]
[EndTime "11:40:15 PDT"]
[Termination "Game drawn by repetition"]

1. g3 {[%clk 0:02:59.8]} 1... e5 {[%clk 0:02:54.9]} 2. Bg2 {[%clk 0:02:58.8]}
2... d5 {[%clk 0:02:49.8]} 3. d3 {[%clk 0:02:58.6]} 3... Nc6 {[%clk 0:02:48.4]}
4. Nf3 {[%clk 0:02:57.9]} 4... g6 {[%clk 0:02:31.2]} 5. O-O {[%clk 0:02:57.2]}
5... Bg7 {[%clk 0:02:31.7]} 6. e4 {[%clk 0:02:56.7]} 6... Nge7 {[%clk
0:02:32.1]} 7. c3 {[%clk 0:02:56.4]} 7... O-O {[%clk 0:02:31.6]} 8. b4 {[%clk
0:02:55.2]} 8... a6 {[%clk 0:02:23.3]} 9. a3 {[%clk 0:02:53.4]} 9... h6 {[%clk
0:02:19.2]} 10. Qc2 {[%clk 0:02:52.8]} 10... Be6 {[%clk 0:02:18.9]} 11. Nbd2
{[%clk 0:02:52.6]} 11... Re8 {[%clk 0:02:16.8]} 12. Bb2 {[%clk 0:02:52.2]} 12...
g5 {[%clk 0:02:08]} 13. Rfe1 {[%clk 0:02:49.5]} 13... Qd7 {[%clk 0:01:50.6]} 14.
exd5 {[%clk 0:02:46.9]} 14... Bxd5 {[%clk 0:01:31.6]} 15. c4 {[%clk 0:02:46.3]}
15... Bxf3 {[%clk 0:01:30.8]} 16. Nxf3 {[%clk 0:02:45.8]} 16... Ng6 {[%clk
0:01:24.7]} 17. b5 {[%clk 0:02:41.6]} 17... axb5 {[%clk 0:01:10.6]} 18. cxb5
{[%clk 0:02:41.3]} 18... Nd8 {[%clk 0:01:11.5]} 19. a4 {[%clk 0:02:40.4]} 19...
c6 {[%clk 0:01:01.5]} 20. Qb3 {[%clk 0:02:39.6]} 20... Ne6 {[%clk 0:00:59.7]}
21. Rac1 {[%clk 0:02:36.2]} 21... cxb5 {[%clk 0:00:55.8]} 22. Qxb5 {[%clk
0:02:26.7]} 22... Qxb5 {[%clk 0:00:54.4]} 23. axb5 {[%clk 0:02:26.4]} 23... Rad8
{[%clk 0:00:55.3]} 24. Nxe5 {[%clk 0:02:13.2]} 24... Nxe5 {[%clk 0:00:37.3]} 25.
Bxe5 {[%clk 0:02:12.4]} 25... Bxe5 {[%clk 0:00:29.8]} 26. Rxe5 {[%clk
0:02:11.4]} 26... Nd4 {[%clk 0:00:30.4]} 27. Rxe8+ {[%clk 0:02:03.5]} 27... Rxe8
{[%clk 0:00:31.3]} 28. Kf1 {[%clk 0:01:59.3]} 28... b6 {[%clk 0:00:25.7]} 29.
Rc7 {[%clk 0:01:58.1]} 29... Nxb5 {[%clk 0:00:21.7]} 30. Rb7 {[%clk 0:01:57.7]}
30... Re6 {[%clk 0:00:19.1]} 31. Bd5 {[%clk 0:01:49.3]} 31... Rf6 {[%clk
0:00:19.6]} 32. Kg2 {[%clk 0:01:45.7]} 32... Nd4 {[%clk 0:00:17.1]} 33. Rd7
{[%clk 0:01:41]} 33... Nf5 {[%clk 0:00:09.7]} 34. Bc4 {[%clk 0:01:27]} 34... Kg7
{[%clk 0:00:10.2]} 35. Rb7 {[%clk 0:01:03]} 35... h5 {[%clk 0:00:10.4]} 36. h3
{[%clk 0:01:02.2]} 36... Kg6 {[%clk 0:00:09.4]} 37. Bd5 {[%clk 0:01:01.1]} 37...
Kg7 {[%clk 0:00:09.4]} 38. Bc4 {[%clk 0:01:00.9]} 38... Kg6 {[%clk 0:00:08.2]}
39. Bd5 {[%clk 0:01:00.8]} 39... Kg7 {[%clk 0:00:08.1]} 40. Bc4 {[%clk
0:01:00.7]} 1/2-1/2

[Event "*** Titled Tuesday Blitz"]
[Site "Chess.com"]
[Date "2020.05.26"]
[Round "8"]
[White "kasparicy"]
[Black "realmadridtv"]
[Result "0-1"]
[WhiteElo "2300"]
[BlackElo "2448"]
[TimeControl "180+1"]
[EndTime "11:40:15 PDT"]
[Termination "realmadridtv won by resignation"]

1. e4 {[%clk 0:03:00.9]} 1... e5 {[%clk 0:02:58.6]} 2. Nf3 {[%clk 0:03:00.3]}
2... Nc6 {[%clk 0:02:54.2]} 3. Bc4 {[%clk 0:02:57.7]} 3... Bc5 {[%clk
0:02:53.8]} 4. O-O {[%clk 0:02:56.6]} 4... d6 {[%clk 0:02:51.8]} 5. c3 {[%clk
0:02:56.7]} 5... Bb6 {[%clk 0:02:51.7]} 6. d3 {[%clk 0:02:56.9]} 6... h6 {[%clk
0:02:50.8]} 7. Bb3 {[%clk 0:02:57.4]} 7... Qf6 {[%clk 0:02:47.2]} 8. Be3 {[%clk
0:02:55.6]} 8... Nge7 {[%clk 0:02:45.9]} 9. Nbd2 {[%clk 0:02:55.6]} 9... g5
{[%clk 0:02:42.9]} 10. d4 {[%clk 0:02:50.9]} 10... g4 {[%clk 0:02:40]} 11. dxe5
{[%clk 0:02:50.8]} 11... dxe5 {[%clk 0:02:38.5]} 12. Ne1 {[%clk 0:02:39.5]}
12... Bd7 {[%clk 0:02:35.8]} 13. Qe2 {[%clk 0:02:36.1]} 13... O-O-O {[%clk
0:02:33.4]} 14. a4 {[%clk 0:02:32.6]} 14... h5 {[%clk 0:02:33.6]} 15. Bxb6
{[%clk 0:02:29.4]} 15... cxb6 {[%clk 0:02:30.7]} 16. a5 {[%clk 0:02:26.5]} 16...
Nxa5 {[%clk 0:02:28.4]} 17. Bc2 {[%clk 0:02:23.6]} 17... h4 {[%clk 0:02:23.6]}
18. b4 {[%clk 0:02:23.6]} 18... Nac6 {[%clk 0:02:22.3]} 19. Nc4 {[%clk
0:02:22.9]} 19... Qh6 {[%clk 0:02:11.9]} 20. b5 {[%clk 0:02:17]} 20... Na5
{[%clk 0:02:08.4]} 21. Nxa5 {[%clk 0:02:16.1]} 21... bxa5 {[%clk 0:02:09.1]} 22.
Rxa5 {[%clk 0:02:15.7]} 22... g3 {[%clk 0:02:06.6]} 23. Rxa7 {[%clk 0:02:10]}
23... h3 {[%clk 0:02:06]} 24. Ra8+ {[%clk 0:01:34.2]} 24... Kc7 {[%clk
0:02:05.5]} 25. Qc4+ {[%clk 0:01:31.9]} 25... Kb6 {[%clk 0:01:55.1]} 26. fxg3
{[%clk 0:01:12.8]} 26... hxg2 {[%clk 0:01:39.9]} 27. Nxg2 {[%clk 0:00:56.8]}
27... Qxh2+ {[%clk 0:01:34.1]} 28. Kf2 {[%clk 0:00:56.3]} 28... Rxa8 {[%clk
0:01:34.7]} 29. Rd1 {[%clk 0:00:55.9]} 29... Rh6 {[%clk 0:01:16.6]} 30. Rxd7
{[%clk 0:00:37.8]} 30... Rf6+ {[%clk 0:01:16.5]} 31. Ke1 {[%clk 0:00:35.4]}
31... Ra1+ {[%clk 0:01:08.9]} 32. Bd1 {[%clk 0:00:26.8]} 32... Qg1+ {[%clk
0:01:05.7]} 33. Kd2 {[%clk 0:00:26.1]} 33... Qxd1+ {[%clk 0:00:43.4]} 0-1

[Event "*** Titled Tuesday Blitz"]
[Site "Chess.com"]
[Date "2020.05.26"]
[Round "8"]
[White "TranJMinh"]
[Black "penguingm1"]
[Result "0-1"]
[WhiteElo "2790"]
[BlackElo "2884"]
[TimeControl "180+1"]
[EndTime "11:40:18 PDT"]
[Termination "penguingm1 won on time"]

1. d4 {[%clk 0:03:00.9]} 1... d5 {[%clk 0:02:58.2]} 2. c4 {[%clk 0:03:01.1]}
2... e6 {[%clk 0:02:58.2]} 3. Nc3 {[%clk 0:03:01.5]} 3... Be7 {[%clk 0:02:58.4]}
4. cxd5 {[%clk 0:03:02.2]} 4... exd5 {[%clk 0:02:59.3]} 5. Bf4 {[%clk
0:03:02.7]} 5... c6 {[%clk 0:03:00.1]} 6. e3 {[%clk 0:03:03.4]} 6... Bf5 {[%clk
0:03:00.7]} 7. Nge2 {[%clk 0:03:03.7]} 7... Nd7 {[%clk 0:03:00.9]} 8. Ng3 {[%clk
0:03:04.3]} 8... Bg6 {[%clk 0:03:01.6]} 9. Bd3 {[%clk 0:03:02.4]} 9... Bxd3
{[%clk 0:02:51.8]} 10. Qxd3 {[%clk 0:03:03.3]} 10... g5 {[%clk 0:02:52.5]} 11.
Be5 {[%clk 0:02:37.9]} 11... f6 {[%clk 0:02:51.7]} 12. Nh5 {[%clk 0:02:38.4]}
12... fxe5 {[%clk 0:02:30.9]} 13. Qf5 {[%clk 0:02:38.1]} 13... Bf6 {[%clk
0:02:19.7]} 14. e4 {[%clk 0:02:37]} 14... exd4 {[%clk 0:01:47.3]} 15. exd5
{[%clk 0:02:35.6]} 15... dxc3 {[%clk 0:01:46.8]} 16. O-O-O {[%clk 0:02:35.2]}
16... Nh6 {[%clk 0:00:40.5]} 17. Rhe1+ {[%clk 0:01:49.1]} 17... Kf7 {[%clk
0:00:24.2]} 18. Qe6+ {[%clk 0:01:27.2]} 18... Kg6 {[%clk 0:00:24.3]} 19. Qe4+
{[%clk 0:00:08.5]} 19... Kxh5 {[%clk 0:00:24.5]} 20. g4+ {[%clk 0:00:03.5]}
20... Nxg4 {[%clk 0:00:24.3]} 21. Rd3 {[%clk 0:00:02.9]} 21... Nxf2 {[%clk
0:00:14.2]} 0-1

[Event "*** Titled Tuesday Blitz"]
[Site "Chess.com"]
[Date "2020.05.26"]
[Round "8"]
[White "Shubinkirill2003"]
[Black "12teen"]
[Result "1-0"]
[WhiteElo "2635"]
[BlackElo "2724"]
[TimeControl "180+1"]
[EndTime "11:40:28 PDT"]
[Termination "Shubinkirill2003 won by resignation"]

1. e4 {[%clk 0:03:00.9]} 1... b6 {[%clk 0:03:00.9]} 2. d4 {[%clk 0:02:59.6]}
2... Bb7 {[%clk 0:03:01.4]} 3. Nc3 {[%clk 0:02:59.3]} 3... e6 {[%clk 0:03:01.9]}
4. Nf3 {[%clk 0:02:58.6]} 4... Nf6 {[%clk 0:03:02.1]} 5. Bd3 {[%clk 0:02:56.6]}
5... d5 {[%clk 0:03:02.2]} 6. e5 {[%clk 0:02:56.1]} 6... Nfd7 {[%clk 0:03:02]}
7. O-O {[%clk 0:02:55.3]} 7... Be7 {[%clk 0:03:02.1]} 8. Ne2 {[%clk 0:02:48.5]}
8... c5 {[%clk 0:03:02.2]} 9. c3 {[%clk 0:02:48.3]} 9... Nc6 {[%clk 0:03:01.9]}
10. Ng3 {[%clk 0:02:47.5]} 10... h5 {[%clk 0:03:01.9]} 11. h3 {[%clk 0:02:35.7]}
11... g5 {[%clk 0:03:00.5]} 12. Be3 {[%clk 0:02:31.4]} 12... g4 {[%clk
0:02:55.9]} 13. hxg4 {[%clk 0:02:24.3]} 13... hxg4 {[%clk 0:02:56.8]} 14. Nh2
{[%clk 0:02:24.4]} 14... Qc7 {[%clk 0:02:56.3]} 15. Nxg4 {[%clk 0:02:16.1]}
15... O-O-O {[%clk 0:02:55.2]} 16. a4 {[%clk 0:02:11.5]} 16... Rdg8 {[%clk
0:02:51.8]} 17. a5 {[%clk 0:02:00.5]} 17... Rh4 {[%clk 0:02:41.3]} 18. axb6
{[%clk 0:01:54.5]} 18... axb6 {[%clk 0:02:39.1]} 19. Be2 {[%clk 0:01:45.8]}
19... f5 {[%clk 0:02:24.1]} 20. exf6 {[%clk 0:01:43.1]} 20... Nxf6 {[%clk
0:02:24.4]} 21. Nxf6 {[%clk 0:01:39.7]} 21... Bxf6 {[%clk 0:02:25.3]} 22. dxc5
{[%clk 0:01:32.1]} 22... Rgh8 {[%clk 0:02:25.6]} 23. f4 {[%clk 0:01:22.4]} 23...
bxc5 {[%clk 0:02:16]} 24. Ba6 {[%clk 0:01:07.1]} 24... d4 {[%clk 0:02:11.1]} 25.
cxd4 {[%clk 0:00:50.8]} 25... Nxd4 {[%clk 0:02:04.6]} 26. Qd3 {[%clk 0:00:37.1]}
26... Rg4 {[%clk 0:01:55.9]} 27. Bf2 {[%clk 0:00:32.3]} 27... Rxf4 {[%clk
0:01:11]} 28. Bxb7+ {[%clk 0:00:26.9]} 28... Qxb7 {[%clk 0:01:11.9]} 29. Rfc1
{[%clk 0:00:24.6]} 29... Nb3 {[%clk 0:00:09]} 30. Bxc5 {[%clk 0:00:22.6]} 30...
Nxc5 {[%clk 0:00:08.9]} 31. Rxc5+ {[%clk 0:00:21.5]} 31... Kb8 {[%clk
0:00:07.4]} 32. Qd6+ {[%clk 0:00:20.4]} 1-0

[Event "*** Titled Tuesday Blitz"]
[Site "Chess.com"]
[Date "2020.05.26"]
[Round "8"]
[White "swisspower96"]
[Black "zajka-molotok"]
[Result "1-0"]
[WhiteElo "2603"]
[BlackElo "2383"]
[TimeControl "180+1"]
[EndTime "11:40:28 PDT"]
[Termination "swisspower96 won on time"]

1. d4 {[%clk 0:03:00.9]} 1... e6 {[%clk 0:02:57.5]} 2. c4 {[%clk 0:03:00.8]}
2... f5 {[%clk 0:02:57.6]} 3. g3 {[%clk 0:02:59.2]} 3... Nf6 {[%clk 0:02:57]} 4.
Bg2 {[%clk 0:02:59.2]} 4... Be7 {[%clk 0:02:56.9]} 5. Nf3 {[%clk 0:02:58.9]}
5... d5 {[%clk 0:02:56.6]} 6. O-O {[%clk 0:02:58.4]} 6... Ne4 {[%clk 0:02:56.6]}
7. b3 {[%clk 0:02:54.3]} 7... Nc6 {[%clk 0:02:55.2]} 8. a4 {[%clk 0:02:51.6]}
8... Bf6 {[%clk 0:02:45.5]} 9. Bb2 {[%clk 0:02:50.6]} 9... h5 {[%clk 0:02:43.6]}
10. h4 {[%clk 0:02:42.4]} 10... g5 {[%clk 0:02:39.6]} 11. hxg5 {[%clk
0:02:41.2]} 11... Bxg5 {[%clk 0:02:39.5]} 12. Nxg5 {[%clk 0:02:23.2]} 12... Qxg5
{[%clk 0:02:29.3]} 13. cxd5 {[%clk 0:02:20.1]} 13... exd5 {[%clk 0:02:28.6]} 14.
Nc3 {[%clk 0:02:15.6]} 14... Be6 {[%clk 0:02:20.5]} 15. Qc1 {[%clk 0:02:14]}
15... Qxc1 {[%clk 0:01:26.1]} 16. Raxc1 {[%clk 0:02:13]} 16... O-O-O {[%clk
0:01:24]} 17. Rfd1 {[%clk 0:01:59.2]} 17... h4 {[%clk 0:01:20.4]} 18. gxh4
{[%clk 0:01:55]} 18... Rxh4 {[%clk 0:01:19.5]} 19. f3 {[%clk 0:01:55.4]} 19...
Nf6 {[%clk 0:00:47.9]} 20. Kf2 {[%clk 0:01:38]} 20... Rg8 {[%clk 0:00:31.2]} 21.
Rh1 {[%clk 0:01:34.5]} 21... Rxh1 {[%clk 0:00:28.3]} 22. Rxh1 {[%clk 0:01:34.7]}
22... Rg6 {[%clk 0:00:19.7]} 23. e3 {[%clk 0:01:18.7]} 23... Kd7 {[%clk
0:00:19.5]} 24. Ne2 {[%clk 0:01:17.6]} 24... Rg7 {[%clk 0:00:16.3]} 25. Nf4
{[%clk 0:01:16.9]} 25... Bf7 {[%clk 0:00:15.8]} 26. Rh6 {[%clk 0:01:15.8]} 26...
Ne8 {[%clk 0:00:14.5]} 27. Bh3 {[%clk 0:01:04.4]} 27... Nd6 {[%clk 0:00:14]} 28.
Nd3 {[%clk 0:01:04.7]} 28... b6 {[%clk 0:00:10.5]} 29. Ba3 {[%clk 0:01:04.5]}
29... Be6 {[%clk 0:00:08.3]} 30. Nf4 {[%clk 0:01:01.2]} 30... Bf7 {[%clk
0:00:03.8]} 31. Bxd6 {[%clk 0:01:01.3]} 31... cxd6 {[%clk 0:00:03.5]} 32. Bxf5+
{[%clk 0:01:01.9]} 32... Kc7 {[%clk 0:00:04.2]} 33. Be6 {[%clk 0:01:01.5]} 33...
Na5 {[%clk 0:00:01.4]} 34. b4 {[%clk 0:00:47]} 34... Nc6 {[%clk 0:00:01.3]} 35.
Nxd5+ {[%clk 0:00:45.3]} 35... Kb7 {[%clk 0:00:01.6]} 36. Bxf7 {[%clk
0:00:44.2]} 36... Rxf7 {[%clk 0:00:01.6]} 37. Rxd6 {[%clk 0:00:44.9]} 1-0

[Event "*** Titled Tuesday Blitz"]
[Site "Chess.com"]
[Date "2020.05.26"]
[Round "8"]
[White "Leonid_Starozhilov"]
[Black "WhiteCapital80"]
[Result "0-1"]
[WhiteElo "2637"]
[BlackElo "2424"]
[TimeControl "180+1"]
[EndTime "11:40:28 PDT"]
[Termination "WhiteCapital80 won on time"]

1. e4 {[%clk 0:03:00.9]} 1... e6 {[%clk 0:03:00]} 2. d4 {[%clk 0:03:00.6]} 2...
d5 {[%clk 0:03:00.2]} 3. e5 {[%clk 0:03:01.1]} 3... c5 {[%clk 0:03:00.1]} 4. c3
{[%clk 0:03:01.6]} 4... Qb6 {[%clk 0:03:00.1]} 5. Nf3 {[%clk 0:03:01.9]} 5...
Nc6 {[%clk 0:03:00]} 6. a3 {[%clk 0:03:02.4]} 6... Bd7 {[%clk 0:03:00.2]} 7. b4
{[%clk 0:02:54.9]} 7... cxd4 {[%clk 0:03:00.3]} 8. cxd4 {[%clk 0:02:54.5]} 8...
Rc8 {[%clk 0:03:01]} 9. Bb2 {[%clk 0:02:48.8]} 9... Na5 {[%clk 0:03:00.8]} 10.
Nbd2 {[%clk 0:02:44.9]} 10... Nc4 {[%clk 0:03:00.9]} 11. Bxc4 {[%clk 0:02:25.3]}
11... dxc4 {[%clk 0:03:00.8]} 12. Rc1 {[%clk 0:02:23.7]} 12... c3 {[%clk
0:03:01.1]} 13. Rxc3 {[%clk 0:02:17.9]} 13... Rxc3 {[%clk 0:02:59.4]} 14. Bxc3
{[%clk 0:02:18.8]} 14... Qa6 {[%clk 0:02:59.8]} 15. d5 {[%clk 0:02:11.6]} 15...
exd5 {[%clk 0:02:51.4]} 16. Nd4 {[%clk 0:01:52.9]} 16... Qxa3 {[%clk 0:02:37.8]}
17. e6 {[%clk 0:01:27.1]} 17... fxe6 {[%clk 0:02:05.8]} 18. Nb1 {[%clk
0:01:14.4]} 18... Qa2 {[%clk 0:01:53.7]} 19. O-O {[%clk 0:01:02.5]} 19... Nf6
{[%clk 0:01:52.9]} 20. Re1 {[%clk 0:01:01]} 20... Be7 {[%clk 0:01:33.7]} 21.
Nxe6 {[%clk 0:00:52.5]} 21... Bxe6 {[%clk 0:01:30.9]} 22. Rxe6 {[%clk
0:00:51.7]} 22... Kf7 {[%clk 0:01:31.4]} 23. Re1 {[%clk 0:00:44.8]} 23... Re8
{[%clk 0:01:14.6]} 24. Bxf6 {[%clk 0:00:29.9]} 24... Bxf6 {[%clk 0:01:10.6]} 25.
Rf1 {[%clk 0:00:13.2]} 25... d4 {[%clk 0:01:00.3]} 26. Nd2 {[%clk 0:00:12.9]}
26... d3 {[%clk 0:00:58]} 27. Nf3 {[%clk 0:00:03.9]} 27... Qe2 {[%clk
0:00:54.9]} 28. Qb3+ {[%clk 0:00:03.6]} 28... Kf8 {[%clk 0:00:54.8]} 29. h3
{[%clk 0:00:03.9]} 29... d2 {[%clk 0:00:47.8]} 30. Rd1 {[%clk 0:00:03.4]} 30...
Rd8 {[%clk 0:00:46.9]} 31. b5 {[%clk 0:00:02.8]} 31... g6 {[%clk 0:00:39.4]} 32.
Qb4+ {[%clk 0:00:02.2]} 32... Kg7 {[%clk 0:00:39.5]} 33. Rxd2 {[%clk 0:00:02.1]}
33... Rxd2 {[%clk 0:00:39.2]} 34. Qxd2 {[%clk 0:00:01]} 34... Qxb5 {[%clk
0:00:38.7]} 0-1

[Event "*** Titled Tuesday Blitz"]
[Site "Chess.com"]
[Date "2020.05.26"]
[Round "8"]
[White "Matveev_Vladimir"]
[Black "mrkvoz"]
[Result "0-1"]
[WhiteElo "2566"]
[BlackElo "2824"]
[TimeControl "180+1"]
[EndTime "11:40:29 PDT"]
[Termination "mrkvoz won by resignation"]

1. d4 {[%clk 0:03:00.9]} 1... d6 {[%clk 0:02:59.9]} 2. c4 {[%clk 0:03:00.1]}
2... e5 {[%clk 0:02:59.6]} 3. Nc3 {[%clk 0:03:00.7]} 3... exd4 {[%clk
0:02:59.4]} 4. Qxd4 {[%clk 0:03:01.6]} 4... Nc6 {[%clk 0:02:59.9]} 5. Qd2 {[%clk
0:03:02.1]} 5... Nf6 {[%clk 0:03:00.3]} 6. e4 {[%clk 0:03:01.9]} 6... g6 {[%clk
0:02:59.6]} 7. b3 {[%clk 0:02:58.3]} 7... Bg7 {[%clk 0:02:59.8]} 8. Bb2 {[%clk
0:02:58.5]} 8... O-O {[%clk 0:02:59.7]} 9. f3 {[%clk 0:02:53.5]} 9... a5 {[%clk
0:02:58.8]} 10. Nge2 {[%clk 0:02:47.3]} 10... Be6 {[%clk 0:02:35]} 11. Nf4
{[%clk 0:02:46.5]} 11... Nd7 {[%clk 0:02:32.5]} 12. Ncd5 {[%clk 0:01:55.5]}
12... Nce5 {[%clk 0:02:31.3]} 13. Be2 {[%clk 0:01:49.7]} 13... a4 {[%clk
0:02:31.6]} 14. O-O {[%clk 0:01:46.4]} 14... c6 {[%clk 0:02:25.7]} 15. Nxe6
{[%clk 0:01:22.9]} 15... fxe6 {[%clk 0:02:26.6]} 16. Nf4 {[%clk 0:01:21.6]}
16... Qf6 {[%clk 0:01:58.4]} 17. Nd3 {[%clk 0:01:10.1]} 17... a3 {[%clk
0:01:53.4]} 18. Bxe5 {[%clk 0:01:09.1]} 18... Nxe5 {[%clk 0:01:53.1]} 19. Nxe5
{[%clk 0:01:08.9]} 19... Qxe5 {[%clk 0:01:54]} 20. Rad1 {[%clk 0:01:08.8]} 20...
Rad8 {[%clk 0:01:51.4]} 21. Kh1 {[%clk 0:01:04.9]} 21... Qc3 {[%clk 0:01:39.8]}
22. Qxc3 {[%clk 0:00:59.5]} 22... Bxc3 {[%clk 0:01:40.7]} 23. f4 {[%clk
0:00:59.6]} 23... e5 {[%clk 0:01:39.2]} 24. f5 {[%clk 0:00:54.5]} 24... Kg7
{[%clk 0:01:32.2]} 25. g4 {[%clk 0:00:37.4]} 25... gxf5 {[%clk 0:01:27]} 26.
exf5 {[%clk 0:00:35.5]} 26... d5 {[%clk 0:01:18.8]} 27. g5 {[%clk 0:00:31]}
27... e4 {[%clk 0:01:19.1]} 28. Bh5 {[%clk 0:00:26.6]} 28... d4 {[%clk
0:01:16.3]} 29. f6+ {[%clk 0:00:25.2]} 29... Kh8 {[%clk 0:01:15.8]} 30. Rf4
{[%clk 0:00:24.1]} 30... e3 {[%clk 0:01:11.3]} 31. Be2 {[%clk 0:00:23.4]} 31...
d3 {[%clk 0:01:10]} 32. Rxd3 {[%clk 0:00:20.2]} 32... Rxd3 {[%clk 0:01:09]} 33.
Bxd3 {[%clk 0:00:21.1]} 33... Rd8 {[%clk 0:01:09.1]} 34. Be2 {[%clk 0:00:20.4]}
34... Rd2 {[%clk 0:01:04.5]} 35. f7 {[%clk 0:00:19.1]} 35... Bb4 {[%clk
0:01:04.7]} 36. Bh5 {[%clk 0:00:08.8]} 36... e2 {[%clk 0:01:03.7]} 37. Bxe2
{[%clk 0:00:06.5]} 37... Rxe2 {[%clk 0:01:04.6]} 38. f8=Q+ {[%clk 0:00:06.7]}
38... Bxf8 {[%clk 0:01:05.2]} 39. Rxf8+ {[%clk 0:00:07.5]} 39... Kg7 {[%clk
0:01:05.9]} 40. Rb8 {[%clk 0:00:07.6]} 40... Rxa2 {[%clk 0:01:06.5]} 41. Rxb7+
{[%clk 0:00:08]} 41... Kg6 {[%clk 0:01:07.4]} 42. h4 {[%clk 0:00:08]} 42... Rb2
{[%clk 0:01:07.7]} 43. Rb6 {[%clk 0:00:06.5]} 43... a2 {[%clk 0:01:06.2]} 44.
Rxc6+ {[%clk 0:00:07]} 44... Kh5 {[%clk 0:01:06.6]} 45. Rh6+ {[%clk 0:00:07.5]}
45... Kg4 {[%clk 0:01:06.8]} 46. Ra6 {[%clk 0:00:08.4]} 46... Rb1+ {[%clk
0:01:06]} 47. Kg2 {[%clk 0:00:08.9]} 47... a1=Q {[%clk 0:01:06.9]} 48. Rxa1
{[%clk 0:00:09.2]} 48... Rxa1 {[%clk 0:01:07.8]} 49. c5 {[%clk 0:00:09.7]} 49...
Rb1 {[%clk 0:01:08]} 0-1

[Event "*** Titled Tuesday Blitz"]
[Site "Chess.com"]
[Date "2020.05.26"]
[Round "8"]
[White "Omk124"]
[Black "MarcoRiehle"]
[Result "1/2-1/2"]
[WhiteElo "2438"]
[BlackElo "2635"]
[TimeControl "180+1"]
[EndTime "11:40:40 PDT"]
[Termination "Game drawn - insufficient material"]

1. e4 {[%clk 0:03:00.9]} 1... e5 {[%clk 0:02:59.8]} 2. Nf3 {[%clk 0:03:01]} 2...
Nf6 {[%clk 0:02:59.8]} 3. Nxe5 {[%clk 0:03:00.8]} 3... Nxe4 {[%clk 0:02:59]} 4.
Qe2 {[%clk 0:02:57.2]} 4... Qe7 {[%clk 0:02:58.6]} 5. Qxe4 {[%clk 0:02:56.6]}
5... d6 {[%clk 0:02:58.8]} 6. d4 {[%clk 0:02:55.7]} 6... dxe5 {[%clk 0:02:59]}
7. Qxe5 {[%clk 0:02:56.5]} 7... Qxe5+ {[%clk 0:02:58.5]} 8. dxe5 {[%clk
0:02:57.4]} 8... Bf5 {[%clk 0:02:58.8]} 9. Nc3 {[%clk 0:02:17.2]} 9... Nc6
{[%clk 0:02:57.8]} 10. Bb5 {[%clk 0:02:16.2]} 10... O-O-O {[%clk 0:02:57.3]} 11.
Bxc6 {[%clk 0:02:14.5]} 11... bxc6 {[%clk 0:02:58.2]} 12. Be3 {[%clk 0:02:13.8]}
12... Bxc2 {[%clk 0:02:57.7]} 13. O-O {[%clk 0:02:09.2]} 13... Kb7 {[%clk
0:02:55.2]} 14. Rac1 {[%clk 0:02:08.8]} 14... Bg6 {[%clk 0:02:52.6]} 15. Na4
{[%clk 0:02:07.5]} 15... Rd5 {[%clk 0:02:49.5]} 16. f4 {[%clk 0:02:05.6]} 16...
Be4 {[%clk 0:02:41.7]} 17. Rfd1 {[%clk 0:02:02.9]} 17... Be7 {[%clk 0:02:40.9]}
18. Nc5+ {[%clk 0:02:02.6]} 18... Bxc5 {[%clk 0:02:39.2]} 19. Bxc5 {[%clk
0:02:03.5]} 19... Rhd8 {[%clk 0:02:34.8]} 20. Rxd5 {[%clk 0:02:03.3]} 20... Rxd5
{[%clk 0:02:35.7]} 21. Be3 {[%clk 0:02:03.5]} 21... g5 {[%clk 0:02:31.4]} 22.
Kf2 {[%clk 0:01:55.6]} 22... g4 {[%clk 0:02:31.5]} 23. Rc5 {[%clk 0:01:46]}
23... Rd3 {[%clk 0:02:24.7]} 24. Rc3 {[%clk 0:01:45.2]} 24... Rd5 {[%clk
0:02:19.8]} 25. Rc5 {[%clk 0:01:44.2]} 25... Rd8 {[%clk 0:02:17.1]} 26. Rc4
{[%clk 0:01:40.4]} 26... Bd5 {[%clk 0:02:08.6]} 27. Rb4+ {[%clk 0:01:40.7]}
27... Kc8 {[%clk 0:02:06.9]} 28. Bxa7 {[%clk 0:01:40.3]} 28... Bxa2 {[%clk
0:02:06.6]} 29. Rb8+ {[%clk 0:01:40.4]} 29... Kd7 {[%clk 0:02:06.5]} 30. Rxd8+
{[%clk 0:01:41.3]} 30... Kxd8 {[%clk 0:02:07.4]} 31. Bc5 {[%clk 0:01:42.2]}
31... Kd7 {[%clk 0:02:05.1]} 32. Kg3 {[%clk 0:01:41.2]} 32... Bd5 {[%clk
0:02:03.8]} 33. b4 {[%clk 0:01:36.4]} 33... Ke6 {[%clk 0:01:58.8]} 34. Kxg4
{[%clk 0:01:36.9]} 34... Bxg2 {[%clk 0:01:58]} 35. Kg5 {[%clk 0:01:37.3]} 35...
Be4 {[%clk 0:01:57.7]} 36. h4 {[%clk 0:01:37.7]} 36... Bg6 {[%clk 0:01:56]} 37.
Bf8 {[%clk 0:01:35]} 37... Bc2 {[%clk 0:01:53.4]} 38. Bc5 {[%clk 0:01:32.7]}
38... Bd3 {[%clk 0:01:53.1]} 39. Kh6 {[%clk 0:01:31.4]} 39... Bg6 {[%clk
0:01:49.5]} 40. Kg7 {[%clk 0:01:31.5]} 40... Kf5 {[%clk 0:01:47.8]} 41. Be3
{[%clk 0:01:24.9]} 41... Kg4 {[%clk 0:01:44]} 42. Bd2 {[%clk 0:01:17.4]} 42...
Kxh4 {[%clk 0:01:40.5]} 43. f5 {[%clk 0:01:17.7]} 43... Bxf5 {[%clk 0:01:40.7]}
44. Kxf7 {[%clk 0:01:18.2]} 44... Kg4 {[%clk 0:01:33.9]} 45. e6 {[%clk
0:01:18.7]} 45... h5 {[%clk 0:01:28.5]} 46. e7 {[%clk 0:01:18.8]} 46... Bd7
{[%clk 0:01:28.5]} 47. e8=Q {[%clk 0:01:19.1]} 47... Bxe8+ {[%clk 0:01:27.6]}
48. Kxe8 {[%clk 0:01:19.8]} 48... h4 {[%clk 0:01:28.5]} 49. Bc3 {[%clk
0:01:17.5]} 49... Kf4 {[%clk 0:01:18.7]} 50. Kd7 {[%clk 0:00:57.5]} 50... h3
{[%clk 0:01:05.8]} 51. Ke6 {[%clk 0:00:57]} 51... Ke4 {[%clk 0:01:05.9]} 52. Be5
{[%clk 0:00:56.8]} 52... Kd3 {[%clk 0:01:01.4]} 53. Bxc7 {[%clk 0:00:42]} 53...
Kc4 {[%clk 0:01:01.2]} 54. Bd6 {[%clk 0:00:42.9]} 54... Kb5 {[%clk 0:00:59.3]}
55. Kd7 {[%clk 0:00:40.4]} 55... c5 {[%clk 0:00:57.9]} 56. bxc5 {[%clk
0:00:37.8]} 56... h2 {[%clk 0:00:58.1]} 57. Bxh2 {[%clk 0:00:35.3]} 57... Kxc5
{[%clk 0:00:58.4]} 1/2-1/2